fUSD/lending_fUSD_20250906
["ID","MTS","AMOUNT","RATE_DAILY","PERIOD"]
[383933279,1757179871221,-797.39,0.00035616,8]
[383933280,1757179871231,-400.0,0.00035616,8]
[383933281,1757179871241,-578.58,0.00035616,8]
[383933282,1757179871250,-400.0,0.00035616,8]
[383933283,1757179871260,-400.0,0.00035616,8]
[383933284,1757179871272,-400.0,0.00035616,8]
[383933285,1757179871281,-400.0,0.00035616,8]
[383933286,1757179871290,-400.0,0.00035616,8]
[383933287,1757179871300,-400.0,0.00035616,8]
[383933288,1757179871309,-400.0,0.00035616,8]
[383933289,1757179871319,-400.0,0.00035616,8]
[383933290,1757179871328,-400.0,0.00035616,8]
[383933291,1757179871339,-400.0,0.00035616,8]
[383933292,1757179871348,-400.0,0.00035616,8]
[383933293,1757179871358,-400.0,0.00035616,8]
[383933294,1757179871368,-400.0,0.00035616,8]
[383933295,1757179871378,-409.29,0.00035616,8]
[383933296,1757179871389,-400.0,0.00035616,8]
[383933297,1757179871399,-652.81,0.00035616,8]
[383933298,1757179871408,-480.4,0.00035616,8]
[383933299,1757179871418,-400.0,0.00035616,8]
[383933300,1757179871427,-400.0,0.00035616,8]
[383933301,1757179871437,-400.0,0.00035616,8]
[383933302,1757179871447,-400.0,0.00035616,8]
[383933303,1757179871456,-500.0,0.00035616,8]
[383933304,1757179871466,-500.0,0.00035616,8]
[383933305,1757179871476,-500.0,0.00035616,8]
[383933306,1757179871486,-500.0,0.00035616,8]
[383933307,1757179871495,-400.0,0.00035616,8]
[383933308,1757179871505,-400.0,0.00035616,8]
[383933309,1757179871515,-400.0,0.00035616,8]
[383933310,1757179871525,-500.0,0.00035616,8]
[383933311,1757179871537,-500.0,0.00035616,8]
[383933312,1757179871547,-400.0,0.00035616,8]
[383933313,1757179871558,-400.0,0.00035616,8]
[383933314,1757179871567,-500.0,0.00035616,8]
[383933315,1757179871577,-1405.12,0.00035666,2]
[383933316,1757179871588,-1648.17,0.00035666,2]
[383933317,1757179871598,-500.0,0.00035673,5]
[383933318,1757179871607,-500.0,0.00035673,5]
[383933319,1757179871616,-500.0,0.00035673,5]
[383933320,1757179871626,-500.0,0.00035673,5]
[383933321,1757179871635,-500.0,0.00035673,5]
[383933322,1757179871645,-500.0,0.00035673,5]
[383933323,1757179871657,-500.0,0.00035673,5]
[383933324,1757179871667,-500.0,0.00035673,5]
[383933325,1757179871676,-502.14935412,0.00035673,5]
[383933326,1757179871685,-500.0,0.00035673,5]
[383933327,1757179871695,-277.2749388,0.00035673,2]
[383933328,1757179871704,-159.552256,0.00035673,2]
[383933329,1757179871714,-500.0,0.00035673,5]
[383933330,1757179871723,-500.0,0.00035673,5]
[383933331,1757179871733,-500.0,0.00035673,5]
[383933332,1757179871743,-150.0,0.00035673,5]
[383933333,1757179871752,-12459.92329964,0.000357,4]
[383933334,1757179871761,-44023.2294501,0.00035739,2]
[383933335,1757179871771,-6526.4995108,0.00035739,2]
[383933336,1757179871780,-1781.1941583,0.00035739,2]
[383933337,1757179871790,-18347.0379683,0.00035748,2]
[383933338,1757179871799,-311.5,0.00035753,2]
[383933339,1757179871808,-150.0,0.00035753,2]
[383933340,1757179871817,-150.0,0.00035753,2]
[383933341,1757179871827,-357.11,0.00035753,2]
[383933342,1757179871836,-150.0,0.00035753,2]
[383933343,1757179871845,-301.85,0.00035753,2]
[383933344,1757179871855,-166.62,0.00035753,2]
[383933345,1757179871864,-409.88,0.00035753,2]
[383933346,1757179871874,-166.62,0.00035753,2]
[383933347,1757179871883,-409.88,0.00035753,2]
[383933348,1757179871893,-541.44,0.00035753,2]
[383933349,1757179871902,-150.0,0.00035753,2]
[383933350,1757179871912,-166.62,0.00035753,2]
[383933351,1757179871921,-409.88,0.00035753,2]
[383933352,1757179871931,-150.0,0.00035753,2]
[383933353,1757179871941,-541.44,0.00035753,2]
[383933354,1757179871950,-166.62,0.00035753,2]
[383933355,1757179871960,-409.88,0.00035753,2]
[383933356,1757179871969,-541.44,0.00035753,2]
[383933357,1757179871979,-541.44,0.00035753,2]
[383933358,1757179871988,-166.62,0.00035753,2]
[383933359,1757179871998,-150.0,0.00035753,2]
[383933360,1757179872011,-409.88,0.00035753,2]
[383933361,1757179872021,-507.67,0.00035753,2]
[383933362,1757179872031,-541.44,0.00035753,2]
[383933363,1757179872043,-150.0,0.00035753,2]
[383933364,1757179872054,-150.0,0.00035753,2]
[383933365,1757179872065,-150.0,0.00035753,2]
[383933366,1757179872076,-150.0,0.00035753,2]
[383933367,1757179872087,-150.0,0.00035753,2]
[383933368,1757179872098,-1425.0,0.00035755,2]
[383933369,1757179872108,-22476.90620554,0.0003579,2]
[383933370,1757179872118,-3100.0,0.000358,13]
[383933371,1757179872127,-736.55,0.000358,30]
[383933372,1757179872136,-2076.51,0.000358,14]
[383933373,1757179872146,-373.07297731,0.00035814,2]
[383933374,1757179872155,-292.36741498,0.00035814,2]
[383933375,1757179872165,-309.29654756,0.00035814,2]
[383933376,1757179872174,-418.0,0.00035863,120]
[383933377,1757179872183,-36847.0,0.00035863,120]
[383933378,1757179872192,-1120.0,0.0003587,2]
[383933379,1757179872202,-500.0,0.00035889,8]
[383933380,1757179872212,-500.0,0.00035889,8]
[383933381,1757179872222,-314.22371474,0.00035889,8]
[383933382,1757179872231,-1405.12,0.00035889,2]
[383933383,1757179872241,-1405.12,0.00035889,2]
[383933384,1757179872252,-1405.12,0.00035889,2]
[383933385,1757179872261,-1648.17,0.00035889,2]
[383933386,1757179872271,-1648.17,0.00035889,2]
[383933387,1757179872280,-1648.17,0.00035889,2]
[383933388,1757179872290,-582.68,0.00035889,8]
[383933389,1757179872299,-582.68,0.00035889,8]
[383933390,1757179872308,-582.68,0.00035889,8]
[383933391,1757179872318,-1291.0,0.00035889,2]
[383933392,1757179872327,-1477.0,0.00035889,2]
[383933393,1757179872337,-645.0,0.00035889,2]
[383933394,1757179872347,-400.0,0.0003589,8]
[383933395,1757179872356,-401.89180335,0.0003589,8]
[383933396,1757179872365,-400.0,0.0003589,8]
[383933397,1757179872375,-403.70793328,0.0003589,8]
[383933398,1757179872384,-400.0,0.0003589,8]
[383933399,1757179872625,-400.0,0.0003589,8]
[383933400,1757179872636,-400.0,0.0003589,8]
[383933401,1757179872646,-459.05926714,0.0003589,8]
[383933402,1757179872655,-400.0,0.0003589,8]
[383933403,1757179872665,-400.0,0.0003589,8]
[383933404,1757179872674,-404.16647026,0.0003589,8]
[383933405,1757179872685,-400.0,0.0003589,8]
[383933406,1757179872695,-401.65731672,0.0003589,8]
[383933407,1757179872707,-400.0,0.0003589,8]
[383933408,1757179872718,-402.75720211,0.0003589,8]
[383933409,1757179872731,-567.5,0.0003589,8]
[383933410,1757179872742,-400.0,0.0003589,8]
[383933411,1757179872752,-400.0,0.0003589,8]
[383933412,1757179872762,-432.88,0.0003589,8]
[383933413,1757179872771,-696.26,0.0003589,8]
[383933414,1757179872781,-400.0,0.0003589,8]
[383933415,1757179872790,-400.0,0.0003589,8]
[383933416,1757179872799,-400.0,0.0003589,8]
[383933417,1757179872809,-400.0,0.0003589,8]
[383933418,1757179872818,-400.0,0.0003589,8]
[383933419,1757179872827,-653.98,0.0003589,8]
[383933420,1757179872838,-400.0,0.0003589,8]
[383933421,1757179872847,-400.0,0.0003589,8]
[383933422,1757179872857,-400.0,0.0003589,8]
[383933423,1757179872866,-400.0,0.0003589,8]
[383933424,1757179872876,-661.76,0.0003589,8]
[383933425,1757179872886,-400.0,0.0003589,8]
[383933426,1757179872896,-400.0,0.0003589,8]
[383933427,1757179872907,-558.06,0.0003589,8]
[383933428,1757179872917,-400.0,0.0003589,8]
[383933429,1757179872927,-400.0,0.0003589,8]
[383933430,1757179872938,-400.0,0.0003589,8]
[383933431,1757179872949,-400.0,0.0003589,8]
[383933432,1757179872959,-402.55244459,0.0003589,8]
[383933433,1757179872969,-400.0,0.0003589,8]
[383933434,1757179872979,-400.0,0.0003589,8]
[383933435,1757179872988,-400.0,0.0003589,8]
[383933436,1757179872999,-400.0,0.0003589,8]
[383933437,1757179873010,-400.0,0.0003589,8]
[383933438,1757179873020,-522.67,0.0003589,8]
[383933439,1757179873030,-400.0,0.0003589,8]
[383933440,1757179873038,-400.0,0.0003589,2]
[383933441,1757179873048,-400.0,0.0003589,2]
[383933442,1757179873057,-400.0,0.0003589,8]
[383933443,1757179873067,-400.0,0.0003589,8]
[383933444,1757179873076,-400.0,0.0003589,8]
[383933445,1757179873086,-402.6942866,0.0003589,8]
[383933446,1757179873096,-400.0,0.0003589,8]
[383933447,1757179873105,-573.22,0.0003589,8]
[383933448,1757179873115,-400.0,0.0003589,8]
[383933449,1757179873124,-400.0,0.0003589,8]
[383933450,1757179873134,-400.0,0.0003589,8]
[383933451,1757179873144,-403.27744446,0.0003589,8]
[383933452,1757179873153,-404.70011087,0.0003589,8]
[383933453,1757179873163,-400.0,0.0003589,8]
[383933454,1757179873172,-400.0,0.0003589,8]
[383933455,1757179873183,-400.0,0.0003589,8]
[383933456,1757179873194,-400.0,0.0003589,8]
[383933457,1757179873204,-400.0,0.0003589,8]
[383933458,1757179873214,-250.61498243,0.0003589,8]
[383933459,1757179873224,-400.0,0.0003589,8]
[383933460,1757179873235,-666.62,0.0003589,8]
[383933461,1757179873244,-400.0,0.0003589,8]
[383933462,1757179873254,-400.0,0.0003589,8]
[383933463,1757179873263,-400.0,0.0003589,8]
[383933464,1757179873273,-400.0,0.0003589,8]
[383933465,1757179873282,-400.0,0.0003589,8]
[383933466,1757179873292,-400.0,0.0003589,8]
[383933467,1757179873302,-400.0,0.0003589,8]
[383933468,1757179873311,-400.0,0.0003589,8]
[383933469,1757179873321,-405.20108175,0.0003589,8]
[383933470,1757179873330,-400.0,0.0003589,8]
[383933471,1757179873340,-400.0,0.0003589,8]
[383933472,1757179873349,-400.0,0.0003589,8]
[383933473,1757179873358,-410.63184807,0.0003589,8]
[383933474,1757179873368,-400.0,0.0003589,8]
[383933475,1757179873377,-780.1,0.0003589,8]
[383933476,1757179873387,-400.0,0.0003589,8]
[383933477,1757179873396,-400.0,0.0003589,8]
[383933478,1757179873406,-694.41,0.0003589,8]
[383933479,1757179873415,-400.0,0.0003589,8]
[383933480,1757179873424,-400.0,0.0003589,8]
[383933481,1757179873434,-400.0,0.0003589,8]
[383933482,1757179873444,-649.75,0.0003589,8]
[383933483,1757179873453,-400.0,0.0003589,8]
[383933484,1757179873463,-563.53,0.0003589,8]
[383933485,1757179873472,-465.85,0.0003589,8]
[383933486,1757179873482,-663.43,0.0003589,8]
[383933487,1757179873491,-770.78,0.0003589,8]
[383933488,1757179873500,-400.0,0.0003589,8]
[383933489,1757179873510,-400.0,0.0003589,8]
[383933490,1757179873521,-192.40246167,0.0003589,8]
[383933491,1757179873530,-590.13,0.0003589,8]
[383933492,1757179873539,-400.0,0.0003589,8]
[383933493,1757179873548,-400.0,0.0003589,8]
[383933494,1757179873558,-400.0,0.0003589,8]
[383933495,1757179873568,-400.0,0.0003589,8]
[383933496,1757179873578,-582.65,0.0003589,8]
[383933497,1757179873587,-847.63,0.0003589,8]
[383933498,1757179873599,-400.0,0.0003589,8]
[383933499,1757179873608,-400.0,0.0003589,8]
[383933500,1757179873618,-400.0,0.0003589,8]
[383933501,1757179873627,-400.0,0.0003589,8]
[383933502,1757179873637,-400.0,0.0003589,8]
[383933503,1757179873647,-511.95,0.0003589,8]
[383933504,1757179873657,-400.0,0.0003589,8]
[383933505,1757179873667,-400.0,0.0003589,8]
[383933506,1757179873678,-549.93,0.0003589,8]
[383933507,1757179873689,-400.0,0.0003589,8]
[383933508,1757179873699,-400.0,0.0003589,8]
[383933509,1757179873710,-619.14,0.0003589,8]
[383933510,1757179873719,-400.0,0.0003589,8]
[383933511,1757179873729,-401.47658901,0.0003589,8]
[383933512,1757179873738,-400.0,0.0003589,8]
[383933513,1757179873747,-400.0,0.0003589,8]
[383933514,1757179873758,-400.0,0.0003589,8]
[383933515,1757179873768,-400.0,0.0003589,8]
[383933516,1757179873777,-438.54,0.0003589,8]
[383933517,1757179873787,-400.0,0.0003589,8]
[383933518,1757179873796,-400.0,0.0003589,8]
[383933519,1757179873805,-400.0,0.0003589,8]
[383933520,1757179873815,-400.0,0.0003589,8]
[383933521,1757179873825,-400.0,0.0003589,8]
[383933522,1757179873835,-400.0,0.0003589,8]
[383933523,1757179873845,-400.0,0.0003589,8]
[383933524,1757179873855,-400.0,0.0003589,8]
[383933525,1757179873865,-400.0,0.0003589,8]
[383933526,1757179873875,-400.0,0.0003589,8]
[383933527,1757179873884,-400.0,0.0003589,8]
[383933528,1757179873894,-400.0,0.0003589,8]
[383933529,1757179873903,-400.0,0.0003589,8]
[383933530,1757179873912,-400.0,0.0003589,8]
[383933531,1757179873922,-400.0,0.0003589,8]
[383933532,1757179873931,-400.0,0.0003589,8]
[383933533,1757179873941,-400.0,0.0003589,8]
[383933534,1757179873951,-400.0,0.0003589,8]
[383933535,1757179873960,-417.10010302,0.0003589,8]
[383933536,1757179873970,-400.0,0.0003589,8]
[383933537,1757179873980,-400.0,0.0003589,8]
[383933538,1757179873990,-400.0,0.0003589,8]
[383933539,1757179874003,-400.0,0.0003589,8]
[383933540,1757179874015,-401.49288166,0.0003589,8]
[383933541,1757179874024,-482.02,0.0003589,8]
[383933542,1757179874034,-400.0,0.0003589,8]
[383933543,1757179874044,-400.0,0.0003589,8]
[383933544,1757179874054,-400.0,0.0003589,8]
[383933545,1757179874064,-404.43870626,0.0003589,8]
[383933546,1757179874074,-400.0,0.0003589,8]
[383933547,1757179874083,-692.34,0.0003589,8]
[383933548,1757179874095,-703.57,0.0003589,8]
[383933549,1757179874105,-400.0,0.0003589,8]
[383933550,1757179874115,-400.0,0.0003589,8]
[383933551,1757179874125,-400.0,0.0003589,8]
[383933552,1757179874135,-400.0,0.0003589,8]
[383933553,1757179874145,-539.16,0.0003589,8]
[383933554,1757179874155,-400.0,0.0003589,8]
[383933555,1757179874164,-402.4,0.0003589,8]
[383933556,1757179874174,-400.0,0.0003589,8]
[383933557,1757179874184,-400.0,0.0003589,8]
[383933558,1757179874195,-449.42,0.0003589,8]
[383933559,1757179874205,-400.0,0.0003589,8]
[383933560,1757179874215,-400.0,0.0003589,8]
[383933561,1757179874225,-400.0,0.0003589,8]
[383933562,1757179874235,-400.0,0.0003589,8]
[383933563,1757179874244,-650.73,0.0003589,8]
[383933564,1757179874254,-568.51,0.0003589,8]
[383933565,1757179874264,-400.0,0.0003589,8]
[383933566,1757179874275,-400.0,0.0003589,8]
[383933567,1757179874285,-400.0,0.0003589,8]
[383933568,1757179874295,-400.0,0.0003589,8]
[383933569,1757179874304,-598.74,0.0003589,8]
[383933570,1757179874314,-400.0,0.0003589,8]
[383933571,1757179874324,-400.0,0.0003589,8]
[383933572,1757179874334,-400.0,0.0003589,8]
[383933573,1757179874343,-400.0,0.0003589,8]
[383933574,1757179874354,-456.02,0.0003589,8]
[383933575,1757179874364,-368.16329514,0.0003589,8]
[383933576,1757179874373,-400.0,0.0003589,8]
[383933577,1757179874383,-400.0,0.0003589,8]
[383933578,1757179874393,-400.0,0.0003589,8]
[383933579,1757179874403,-409.49804373,0.0003589,8]
[383933580,1757179874413,-400.0,0.0003589,8]
[383933581,1757179874423,-400.0,0.0003589,8]
[383933582,1757179874433,-433.93,0.0003589,8]
[383933583,1757179874443,-400.0,0.0003589,8]
[383933584,1757179874453,-400.0,0.0003589,8]
[383933585,1757179874463,-335.070809,0.0003589,8]
[383933586,1757179874473,-400.0,0.0003589,8]
[383933587,1757179874484,-400.0,0.0003589,8]
[383933588,1757179874494,-433.498801,0.0003589,8]
[383933589,1757179874504,-408.4883926,0.0003589,8]
[383933590,1757179874515,-404.34252097,0.0003589,8]
[383933591,1757179874525,-400.0,0.0003589,8]
[383933592,1757179874535,-400.0,0.0003589,8]
[383933593,1757179874546,-400.0,0.0003589,8]
[383933594,1757179874556,-405.39,0.0003589,8]
[383933595,1757179874567,-467.11881044,0.0003589,8]
[383933596,1757179874576,-400.0,0.0003589,8]
[383933597,1757179874585,-636.39,0.0003589,8]
[383933598,1757179874595,-400.0,0.0003589,8]
[383933599,1757179874604,-400.0,0.0003589,8]
[383933600,1757179874615,-400.0,0.0003589,8]
[383933601,1757179874625,-400.0,0.0003589,8]
[383933602,1757179874635,-416.79,0.0003589,8]
[383933603,1757179874646,-404.39,0.0003589,8]
[383933604,1757179874656,-400.0,0.0003589,8]
[383933605,1757179874665,-407.56310362,0.0003589,8]
[383933606,1757179874675,-400.0,0.0003589,8]
[383933607,1757179874684,-400.0,0.0003589,8]
[383933608,1757179874694,-400.0,0.0003589,8]
[383933609,1757179874707,-400.0,0.0003589,8]
[383933610,1757179874717,-531.93,0.0003589,8]
[383933611,1757179874726,-400.0,0.0003589,7]
[383933612,1757179874736,-472.18,0.0003589,8]
[383933613,1757179874746,-400.0,0.0003589,8]
[383933614,1757179874755,-400.0,0.0003589,8]
[383933615,1757179874765,-400.0,0.0003589,8]
[383933616,1757179874774,-400.0,0.0003589,8]
[383933617,1757179874783,-254.060479,0.0003589,8]
[383933618,1757179874794,-400.0,0.0003589,8]
[383933619,1757179874803,-400.0,0.0003589,8]
[383933620,1757179874813,-400.0,0.0003589,8]
[383933621,1757179874824,-494.41,0.0003589,8]
[383933622,1757179874834,-439.52,0.0003589,8]
[383933623,1757179874843,-400.0,0.0003589,8]
[383933624,1757179874853,-400.0,0.0003589,8]
[383933625,1757179874862,-400.0,0.0003589,8]
[383933626,1757179874872,-400.0,0.0003589,8]
[383933627,1757179874883,-400.0,0.0003589,8]
[383933628,1757179874893,-400.0,0.0003589,8]
[383933629,1757179874902,-400.0,0.0003589,8]
[383933630,1757179874912,-400.0,0.0003589,8]
[383933631,1757179874922,-400.0,0.0003589,8]
[383933632,1757179874932,-400.0,0.0003589,8]
[383933633,1757179874942,-400.0,0.0003589,8]
[383933634,1757179874952,-400.0,0.0003589,8]
[383933635,1757179874962,-400.0,0.0003589,8]
[383933636,1757179874971,-461.82,0.0003589,8]
[383933637,1757179874980,-400.0,0.0003589,8]
[383933638,1757179874990,-400.0,0.0003589,8]
[383933639,1757179875090,-400.0,0.0003589,8]
[383933640,1757179875099,-400.0,0.0003589,8]
[383933641,1757179875110,-400.0,0.0003589,8]
[383933642,1757179875121,-400.0,0.0003589,8]
[383933643,1757179875130,-400.0,0.0003589,8]
[383933644,1757179875142,-400.0,0.0003589,8]
[383933645,1757179875151,-400.0,0.0003589,8]
[383933646,1757179875161,-400.0,0.0003589,8]
[383933647,1757179875170,-400.0,0.0003589,8]
[383933648,1757179875180,-400.0,0.0003589,8]
[383933649,1757179875190,-400.0,0.0003589,8]
[383933650,1757179875202,-400.0,0.0003589,8]
[383933651,1757179875211,-400.0,0.0003589,8]
[383933652,1757179875221,-400.0,0.0003589,8]
[383933653,1757179875230,-400.0,0.0003589,8]
[383933654,1757179875239,-400.0,0.0003589,8]
[383933655,1757179875248,-400.0,0.0003589,8]
[383933656,1757179875257,-400.0,0.0003589,8]
[383933657,1757179875266,-400.0,0.0003589,8]
[383933658,1757179875275,-400.0,0.0003589,8]
[383933659,1757179875284,-400.0,0.0003589,8]
[383933660,1757179875294,-400.0,0.0003589,8]
[383933661,1757179875303,-415.68,0.0003589,8]
[383933662,1757179875314,-400.0,0.0003589,8]
[383933663,1757179875324,-831.73,0.0003589,8]
[383933664,1757179875334,-1107.59,0.0003589,8]
[383933665,1757179875343,-400.0,0.0003589,8]
[383933666,1757179875354,-439.1,0.0003589,8]
[383933667,1757179875364,-410.66875156,0.0003589,8]
[383933668,1757179875374,-411.14766691,0.0003589,8]
[383933669,1757179875383,-400.0,0.0003589,8]
[383933670,1757179875393,-160.19867209,0.0003589,8]
[383933671,1757179875402,-400.0,0.0003589,8]
[383933672,1757179875412,-635.02,0.0003589,8]
[383933673,1757179875422,-400.0,0.0003589,8]
[383933674,1757179875433,-739.2,0.0003589,8]
[383933675,1757179875442,-445.06,0.0003589,8]
[383933676,1757179875451,-400.0,0.0003589,8]
[383933677,1757179875461,-434.04,0.0003589,8]
[383933678,1757179875471,-400.0,0.0003589,8]
[383933679,1757179875482,-400.0,0.0003589,8]
[383933680,1757179875491,-435.74458837,0.0003589,8]
[383933681,1757179875501,-400.0,0.0003589,8]
[383933682,1757179875511,-400.0,0.0003589,8]
[383933683,1757179875522,-400.0,0.0003589,8]
[383933684,1757179875533,-400.0,0.0003589,8]
[383933685,1757179875543,-427.44,0.0003589,8]
[383933686,1757179875553,-400.0,0.0003589,8]
[383933687,1757179875562,-400.0,0.0003589,8]
[383933688,1757179875571,-400.0,0.0003589,8]
[383933689,1757179875581,-400.0,0.0003589,8]
[383933690,1757179875590,-300.0,0.0003589,8]
[383933691,1757179875599,-400.0,0.0003589,8]
[383933692,1757179875609,-400.0,0.0003589,8]
[383933693,1757179875618,-721.36,0.0003589,8]
[383933694,1757179875627,-400.0,0.0003589,8]
[383933695,1757179875637,-400.0,0.0003589,8]
[383933696,1757179875647,-645.95,0.0003589,8]
[383933697,1757179875657,-519.25,0.0003589,8]
[383933698,1757179875667,-400.0,0.0003589,8]
[383933699,1757179875677,-574.15,0.0003589,8]
[383933700,1757179875687,-400.0,0.0003589,8]
[383933701,1757179875699,-400.0,0.0003589,8]
[383933702,1757179875709,-400.0,0.0003589,8]
[383933703,1757179875718,-400.0,0.0003589,8]
[383933704,1757179875727,-400.0,0.0003589,8]
[383933705,1757179875738,-546.17,0.0003589,8]
[383933706,1757179875748,-400.0,0.0003589,8]
[383933707,1757179875758,-400.0,0.0003589,8]
[383933708,1757179875767,-400.0,0.0003589,8]
[383933709,1757179875776,-408.30112827,0.0003589,8]
[383933710,1757179875786,-404.64605642,0.0003589,8]
[383933711,1757179875795,-618.27,0.0003589,8]
[383933712,1757179875804,-400.0,0.0003589,8]
[383933713,1757179875813,-400.0,0.0003589,8]
[383933714,1757179875822,-457.74,0.0003589,8]
[383933715,1757179875831,-400.0,0.0003589,8]
[383933716,1757179875841,-400.0,0.0003589,8]
[383933717,1757179875850,-400.0,0.0003589,8]
[383933718,1757179875859,-400.0,0.0003589,8]
[383933719,1757179875869,-400.0,0.0003589,8]
[383933720,1757179875878,-400.0,0.0003589,8]
[383933721,1757179875887,-851.42,0.0003589,8]
[383933722,1757179875897,-400.0,0.0003589,8]
[383933723,1757179875906,-400.0,0.0003589,8]
[383933724,1757179875915,-400.0,0.0003589,8]
[383933725,1757179875924,-400.0,0.0003589,8]
[383933726,1757179875934,-404.74212369,0.0003589,8]
[383933727,1757179875943,-400.0,0.0003589,8]
[383933728,1757179875954,-442.01,0.0003589,8]
[383933729,1757179875963,-586.75,0.0003589,8]
[383933730,1757179875972,-400.0,0.0003589,8]
[383933731,1757179875981,-601.65,0.0003589,8]
[383933732,1757179875991,-400.0,0.0003589,8]
[383933733,1757179876003,-400.0,0.0003589,8]
[383933734,1757179876012,-400.0,0.0003589,8]
[383933735,1757179876022,-213.13340095,0.0003589,8]
[383933736,1757179876032,-400.0,0.0003589,8]
[383933737,1757179876041,-464.82,0.0003589,8]
[383933738,1757179876050,-400.0,0.0003589,8]
[383933739,1757179876059,-400.0,0.0003589,8]
[383933740,1757179876068,-400.0,0.0003589,8]
[383933741,1757179876078,-400.0,0.0003589,8]
[383933742,1757179876087,-400.0,0.0003589,8]
[383933743,1757179876097,-400.0,0.0003589,8]
[383933744,1757179876106,-400.0,0.0003589,8]
[383933745,1757179876115,-400.0,0.0003589,8]
[383933746,1757179876124,-180.0,0.0003589,8]
[383933747,1757179876134,-400.0,0.0003589,8]
[383933748,1757179876143,-400.0,0.0003589,8]
[383933749,1757179876152,-400.0,0.0003589,8]
[383933750,1757179876161,-416.22930455,0.0003589,8]
[383933751,1757179876170,-400.0,0.0003589,8]
[383933752,1757179876179,-400.0,0.0003589,8]
[383933753,1757179876189,-400.0,0.0003589,8]
[383933754,1757179876198,-471.25,0.0003589,8]
[383933755,1757179876208,-400.0,0.0003589,8]
[383933756,1757179876217,-400.0,0.0003589,8]
[383933757,1757179876226,-400.0,0.0003589,8]
[383933758,1757179876235,-411.86,0.0003589,8]
[383933759,1757179876244,-407.14333375,0.0003589,8]
[383933760,1757179876254,-400.0,0.0003589,8]
[383933761,1757179876263,-524.09,0.0003589,8]
[383933762,1757179876272,-400.0,0.0003589,8]
[383933763,1757179876282,-400.0,0.0003589,8]
[383933764,1757179876291,-589.45,0.0003589,8]
[383933765,1757179876301,-400.0,0.0003589,8]
[383933766,1757179876310,-400.0,0.0003589,8]
[383933767,1757179876319,-400.0,0.0003589,8]
[383933768,1757179876329,-445.16880561,0.0003589,8]
[383933769,1757179876980,-17.40119439,0.0003589,8]
[383933770,1757179876990,-535.66,0.0003589,8]
[383933771,1757179877000,-619.83,0.0003589,8]
[383933772,1757179877013,-357.64229133,0.0003589,8]
[383933773,1757179877023,-400.0,0.0003589,8]
[383933774,1757179877032,-545.09,0.0003589,8]
[383933775,1757179877042,-400.0,0.0003589,8]
[383933776,1757179877053,-400.0,0.0003589,8]
[383933777,1757179877063,-400.0,0.0003589,8]
[383933778,1757179877073,-400.0,0.0003589,8]